lending/lending_fUSD_20250131
["ID","MTS","AMOUNT","RATE_DAILY","PERIOD"]
[351080460,1738326666585,-969.33,0.00016986,2]
[351080461,1738326666595,-4237.1,0.00016986,2]
[351080462,1738326666604,-1545.67651013,0.00016986,2]
[351080463,1738326666616,-470.43348987,0.00016986,2]
[351080464,1738326666625,-1584.44,0.00016986,2]
[351080465,1738326666635,-2479.22,0.00016986,2]
[351080466,1738326666644,-969.44,0.00016986,2]
[351080467,1738326666653,-500.0,0.00016986,2]
[351080468,1738326666663,-151.0,0.00016986,2]
[351080469,1738326666672,-1149.85,0.00016986,2]
[351080470,1738326666681,-696.96,0.00016986,2]
[351080471,1738326666691,-500.0,0.00016986,2]
[351080472,1738326666700,-500.0,0.00016986,2]
[351080473,1738326666710,-661.24,0.00016986,2]
[351080474,1738326666720,-1340.07,0.00016986,2]
[351080475,1738326666728,-2614.22,0.00016986,2]
[351080476,1738326666738,-107.36151013,0.00016986,2]
[351080477,1738326666750,-778.83848987,0.00016986,2]
[351080478,1738326666759,-605.91151013,0.00016986,2]
[351080479,1738326666770,-986.13848987,0.00016986,2]
[351080480,1738326666779,-784.0,0.00016986,2]
[351080481,1738326666788,-116.56400709,0.00016986,2]
[351080482,1738326666904,-500.0,0.00016849,2]
[351080483,1738326666914,-744.80599291,0.00016986,2]
[351080484,1738326666924,-207.922021,0.00016986,2]
[351080485,1738326666933,-1234.21,0.00016986,2]
[351080486,1738326666942,-2093.55,0.00016986,2]
[351080487,1738326666952,-545.78,0.00016986,2]
[351080488,1738326666961,-3893.5,0.00016986,2]
[351080489,1738326666970,-266.30382615,0.00016986,2]
[351080490,1738326667319,-297.47085954,0.00016438,2]
[351080491,1738326667327,-500.0,0.00016438,2]
[351080492,1738326667336,-1134.67247426,0.00016986,2]
[351080493,1738326667348,-335.71925001,0.00016986,2]
[351080494,1738326667980,-500.0,0.00016438,2]
[351080495,1738326667989,-500.0,0.00016438,2]
[351080496,1738326667999,-500.0,0.00016438,2]
[351080497,1738326668010,-500.0,0.00016438,2]
[351080498,1738326668019,-500.0,0.00016438,2]
[351080499,1738326668029,-500.0,0.00016575,2]
[351080500,1738326668039,-500.0,0.00016575,2]
[351080501,1738326668048,-500.0,0.00016575,2]
[351080502,1738326668057,-500.0,0.00016575,2]
[351080503,1738326668067,-500.0,0.00016575,2]
[351080504,1738326668076,-500.0,0.00016575,2]
[351080505,1738326668086,-500.0,0.00016712,2]
[351080506,1738326668095,-500.0,0.00016712,2]
[351080507,1738326668105,-500.0,0.00016712,2]
[351080508,1738326668114,-500.0,0.00016712,2]
[351080509,1738326668124,-500.0,0.00016712,2]
[351080510,1738326668134,-352.12257298,0.00016849,2]
[351080511,1738326668144,-500.0,0.00016849,2]
[351080512,1738326668154,-500.0,0.00016849,2]
[351080513,1738326668163,-500.0,0.00016849,2]
[351080514,1738326668173,-135.22444958,0.00016986,2]
[351080515,1738326668182,-1079.17,0.00016986,2]
[351080516,1738326668192,-506.9205611,0.00016986,2]
[351080517,1738326668202,-1844.16,0.00016986,2]
[351080518,1738326668212,-3833.57,0.00016986,2]
[351080519,1738326668221,-339.66114543,0.00016986,2]
[351080520,1738326668230,-151.0,0.00016986,2]
[351080521,1738326668240,-1436.42,0.00016986,2]
[351080522,1738326668251,-5425.93,0.00016986,2]
[351080523,1738326668261,-2514.61,0.00016986,2]
[351080524,1738326668270,-964.92,0.00016986,2]
[351080525,1738326668279,-2515.19,0.00016986,2]
[351080526,1738326668288,-2939.07,0.00016986,2]
[351080527,1738326668298,-790.69,0.00016986,2]
[351080528,1738326668308,-575.33,0.00016986,2]
[351080529,1738326668317,-2587.16,0.00016986,2]
[351080530,1738326668327,-500.0,0.00016986,2]
[351080531,1738326668336,-1685.54,0.00016986,2]
[351080532,1738326668346,-2582.85,0.00016986,2]
[351080533,1738326668355,-778.72,0.00016986,2]
[351080534,1738326668365,-500.0,0.00016986,2]
[351080535,1738326668378,-664.29,0.00016986,2]
[351080536,1738326668388,-1001.24,0.00016986,2]
[351080537,1738326668398,-3094.09,0.00016986,2]
[351080538,1738326668408,-1093.82,0.00016986,2]
[351080539,1738326668419,-5595.54,0.00016986,2]
[351080540,1738326668429,-2985.13,0.00016986,2]
[351080541,1738326668440,-1377.98,0.00016986,2]
[351080542,1738326668450,-6586.61,0.00016986,2]
[351080543,1738326668462,-1362.9,0.00016986,2]
[351080544,1738326668472,-2029.22,0.00016986,2]
[351080545,1738326668484,-1074.97,0.00016986,2]
[351080546,1738326668494,-619.48512796,0.00016986,2]
[351080547,1738326668505,-512.01,0.00016986,2]
[351080548,1738326668514,-2260.49,0.00016986,2]
[351080549,1738326668524,-2165.14,0.00016986,2]
[351080550,1738326668533,-1351.8,0.00016986,2]
[351080551,1738326668543,-2553.37,0.00016986,2]
[351080552,1738326668553,-6719.37,0.00016986,2]
[351080553,1738326668562,-1353.16,0.00016986,2]
[351080554,1738326668573,-747.91,0.00016986,2]
[351080555,1738326668583,-513.37,0.00016986,2]
[351080556,1738326668594,-500.0,0.00016986,2]
[351080557,1738326668604,-500.0,0.00016986,2]
[351080558,1738326668614,-151.0,0.00016986,2]
[351080559,1738326668624,-3385.51,0.00016986,2]
[351080560,1738326668635,-3474.04,0.00016986,2]
[351080561,1738326668645,-2712.92,0.00016986,2]
[351080562,1738326668655,-1171.38,0.00016986,2]
[351080563,1738326668665,-512.74,0.00016986,2]
[351080564,1738326668675,-1032.79,0.00016986,2]
[351080565,1738326668684,-1656.22,0.00016986,2]
[351080566,1738326668694,-500.0,0.00016986,2]
[351080567,1738326668704,-510.44,0.00016986,2]
[351080568,1738326668714,-6216.19,0.00016986,2]
[351080569,1738326668727,-151.0,0.00016986,2]
[351080570,1738326668736,-500.0,0.00016986,2]
[351080571,1738326668746,-1866.86,0.00016986,2]
[351080572,1738326668759,-732.56,0.00016986,2]
[351080573,1738326668768,-2228.14,0.00016986,2]
[351080574,1738326668779,-2302.38,0.00016986,2]
[351080575,1738326668789,-633.1,0.00016986,2]
[351080576,1738326668799,-500.0,0.00016986,2]
[351080577,1738326668809,-1437.37,0.00016986,2]
[351080578,1738326668819,-3166.28,0.00016986,2]
[351080579,1738326668830,-2832.15,0.00016986,2]
[351080580,1738326668841,-1313.22,0.00016986,2]
[351080581,1738326668851,-500.0,0.00016986,2]
[351080582,1738326668862,-2083.98,0.00016986,2]
[351080583,1738326668873,-1344.31010377,0.00016986,2]
[351080584,1738326668910,-308.400007,0.00016438,2]
[351080585,1738326668934,-191.599993,0.00016438,2]
[351080586,1738326668946,-394.02,0.00016712,2]
[351080587,1738326668957,-3200.07989623,0.00016986,2]
[351080588,1738326668969,-1915.53,0.00016986,2]
[351080589,1738326668979,-4066.08,0.00016986,2]
[351080590,1738326668990,-946.4,0.00016986,2]
[351080591,1738326669003,-500.0,0.00016986,2]
[351080592,1738326669013,-500.0,0.00016986,2]
[351080593,1738326669022,-893.28,0.00016986,2]
[351080594,1738326669032,-710.96,0.00016986,2]
[351080595,1738326669041,-10975.61,0.00016986,2]
[351080596,1738326669052,-500.0,0.00016986,2]
[351080597,1738326669062,-890.65,0.00016986,2]
[351080598,1738326669071,-1210.85,0.00016986,2]
[351080599,1738326669083,-151.0,0.00016986,2]
[351080600,1738326669093,-1476.65,0.00016986,2]
[351080601,1738326669103,-12807.63,0.00016986,2]
[351080602,1738326669112,-6528.92,0.00016986,2]
[351080603,1738326669122,-500.0,0.00016986,2]
[351080604,1738326669132,-5108.04,0.00016986,2]
[351080605,1738326669144,-1987.9,0.00016986,2]
[351080606,1738326669154,-500.0,0.00016986,2]
[351080607,1738326669164,-1082.85,0.00016986,2]
[351080608,1738326669175,-1419.61,0.00016986,2]
[351080609,1738326669184,-585.69,0.00016986,2]
[351080610,1738326669193,-500.0,0.00016986,2]
[351080611,1738326669203,-500.0,0.00016986,2]
[351080612,1738326669213,-592.09,0.00016986,2]
[351080613,1738326669223,-25232.3836046,0.00017,2]
[351080614,1738326669233,-151.03,0.00017035,2]
[351080615,1738326669245,-151.68,0.00017035,2]
[351080616,1738326669255,-992.1,0.00017035,2]
[351080617,1738326669265,-438.33,0.00017035,2]
[351080618,1738326669275,-291.6,0.00017035,2]
[351080619,1738326669285,-150.0,0.00017035,2]
[351080620,1738326669294,-306.31,0.00017035,2]
[351080621,1738326669304,-438.33,0.00017035,2]
[351080622,1738326669314,-150.0,0.00017035,2]
[351080623,1738326669324,-150.0,0.00017035,2]
[351080624,1738326669334,-34281.51248422,0.00017122,4]
[351080625,1738326669343,-501.05,0.00017122,2]
[351080626,1738326669353,-1009.11,0.00017122,2]
[351080627,1738326669364,-1009.11,0.00017122,2]
[351080628,1738326669377,-869.239506,0.00017123,2]
[351080629,1738326669387,-500.0,0.00017123,2]
[351080630,1738326669398,-500.0,0.00017123,2]
[351080631,1738326669408,-500.0,0.00017123,2]
[351080632,1738326669419,-500.0,0.00017123,2]
[351080633,1738326669429,-1361.72118,0.00017123,2]
[351080634,1738326669440,-500.0,0.00017123,2]
[351080635,1738326669452,-450.44749537,0.00017123,2]
[351080636,1738326669462,-500.0,0.00017123,2]
[351080637,1738326669473,-500.0,0.00017123,2]
[351080638,1738326669484,-648.01426211,0.00017123,2]
[351080639,1738326669493,-500.0,0.00017123,2]
[351080640,1738326669507,-500.0,0.00017123,2]
[351080641,1738326669517,-500.0,0.00017123,2]
[351080642,1738326669529,-500.0,0.00017123,2]
[351080643,1738326669540,-500.0,0.00017123,2]
[351080644,1738326669551,-500.0,0.00017123,2]
[351080645,1738326669561,-500.0,0.00017123,2]
[351080646,1738326669573,-658.86,0.00017123,2]
[351080647,1738326669584,-500.0,0.00017123,2]
[351080648,1738326669594,-500.0,0.00017123,2]
[351080649,1738326669604,-500.0,0.00017123,2]
[351080650,1738326669615,-500.0,0.00017123,2]
[351080651,1738326669626,-500.0,0.00017123,2]
[351080652,1738326669636,-706.56,0.00017123,2]
[351080653,1738326669647,-500.0,0.00017123,2]
[351080654,1738326669657,-731.02,0.00017123,2]
[351080655,1738326669668,-500.0,0.00017123,2]
[351080656,1738326669678,-500.0,0.00017123,2]
[351080657,1738326669689,-500.0,0.00017123,2]
[351080658,1738326669699,-500.0,0.00017123,2]
[351080659,1738326669710,-500.0,0.00017123,2]
[351080660,1738326669720,-500.0,0.00017123,2]
[351080661,1738326669730,-500.0,0.00017123,2]
[351080662,1738326669740,-807.59,0.00017123,2]
[351080663,1738326669754,-500.0,0.00017123,2]
[351080664,1738326669763,-500.0,0.00017123,2]
[351080665,1738326669774,-569.61,0.00017123,2]
[351080666,1738326669784,-500.0,0.00017123,2]
[351080667,1738326669793,-500.0,0.00017123,2]
[351080668,1738326669803,-500.0,0.00017123,2]
[351080669,1738326669814,-514.74,0.00017123,2]
[351080670,1738326669825,-500.0,0.00017123,2]
[351080671,1738326669835,-1401.31,0.00017123,2]
[351080672,1738326669845,-500.0,0.00017123,2]
[351080673,1738326669856,-500.0,0.00017123,2]
[351080674,1738326669866,-500.0,0.00017123,2]
[351080675,1738326669876,-790.91,0.00017123,2]
[351080676,1738326669887,-500.0,0.00017123,2]
[351080677,1738326669897,-500.0,0.00017123,2]
[351080678,1738326669907,-1667.8,0.00017123,2]
[351080679,1738326669917,-500.0,0.00017123,2]
[351080680,1738326669926,-1045.53,0.00017123,2]
[351080681,1738326669936,-500.0,0.00017123,2]
[351080682,1738326669946,-500.0,0.00017123,2]
[351080683,1738326669955,-500.0,0.00017123,2]
[351080684,1738326669966,-570.25,0.00017123,2]
[351080685,1738326669975,-1240.4,0.00017123,2]
[351080686,1738326669986,-500.0,0.00017123,2]
[351080687,1738326669997,-500.0,0.00017123,2]
[351080688,1738326670011,-500.0,0.00017123,2]
[351080689,1738326670021,-500.0,0.00017123,2]
[351080690,1738326670031,-500.0,0.00017123,2]
[351080691,1738326670040,-500.0,0.00017123,2]
[351080692,1738326670050,-500.0,0.00017123,2]
[351080693,1738326670059,-689.6,0.00017123,2]
[351080694,1738326670069,-500.0,0.00017123,2]
[351080695,1738326670079,-500.0,0.00017123,2]
[351080696,1738326670089,-500.0,0.00017123,2]
[351080697,1738326670098,-500.0,0.00017123,2]
[351080698,1738326670108,-910.39,0.00017123,2]
[351080699,1738326670118,-500.0,0.00017123,2]
[351080700,1738326670127,-904.35,0.00017123,2]
[351080701,1738326670137,-689.96,0.00017123,2]
[351080702,1738326670146,-500.0,0.00017123,2]
[351080703,1738326670156,-731.84,0.00017123,2]
[351080704,1738326670166,-500.0,0.00017123,2]
[351080705,1738326670176,-500.0,0.00017123,2]
[351080706,1738326670185,-500.0,0.00017123,2]
[351080707,1738326670195,-500.0,0.00017123,2]
[351080708,1738326670205,-1184.32,0.00017123,2]
[351080709,1738326670214,-521.46,0.00017123,2]
[351080710,1738326670224,-500.0,0.00017123,2]
[351080711,1738326670233,-962.35,0.00017123,2]
[351080712,1738326670243,-629.74,0.00017123,2]
[351080713,1738326670253,-500.0,0.00017123,2]
[351080714,1738326670263,-500.0,0.00017123,2]
[351080715,1738326670272,-500.0,0.00017123,2]
[351080716,1738326670283,-733.72,0.00017123,2]
[351080717,1738326670294,-2308.58,0.00017123,2]
[351080718,1738326670303,-639.9,0.00017123,2]
[351080719,1738326670313,-641.69267035,0.00017123,2]
[351080720,1738326670323,-1198.14,0.00017123,2]
[351080721,1738326670334,-504.46,0.00017123,2]
[351080722,1738326670343,-851.17,0.00017123,2]
[351080723,1738326670354,-500.0,0.00017123,2]
[351080724,1738326670364,-500.0,0.00017123,2]
[351080725,1738326670376,-600.74,0.00017123,2]
[351080726,1738326670386,-500.0,0.00017123,2]
[351080727,1738326670673,-733.21,0.00017123,2]
[351080728,1738326670683,-500.0,0.00017123,2]
[351080729,1738326670692,-579.87,0.00017123,2]
[351080730,1738326670701,-500.0,0.00017123,2]
[351080731,1738326670711,-500.0,0.00017123,2]
[351080732,1738326670720,-500.0,0.00017123,2]
[351080733,1738326670728,-1059.07,0.00017123,2]
[351080734,1738326670738,-500.0,0.00017123,2]
[351080735,1738326670747,-739.89,0.00017123,2]
[351080736,1738326670759,-500.0,0.00017123,2]
[351080737,1738326670769,-500.0,0.00017123,2]
[351080738,1738326670778,-975.26,0.00017123,2]
[351080739,1738326670787,-894.65,0.00017123,2]
[351080740,1738326670797,-623.28,0.00017123,2]
[351080741,1738326670806,-722.08,0.00017123,2]
[351080742,1738326670816,-500.0,0.00017123,2]
[351080743,1738326670825,-662.55,0.00017123,2]
[351080744,1738326670834,-500.0,0.00017123,2]
[351080745,1738326670844,-1568.48,0.00017123,2]
[351080746,1738326670853,-500.0,0.00017123,2]
[351080747,1738326670863,-500.0,0.00017123,2]
[351080748,1738326670872,-581.28,0.00017123,2]
[351080749,1738326670882,-943.51,0.00017123,2]
[351080750,1738326670892,-500.0,0.00017123,2]
[351080751,1738326670902,-500.0,0.00017123,2]
[351080752,1738326670911,-528.65,0.00017123,2]
[351080753,1738326670920,-938.62,0.00017123,2]
[351080754,1738326670931,-782.18,0.00017123,2]
[351080755,1738326670940,-632.4,0.00017123,2]
[351080756,1738326670950,-500.0,0.00017123,2]
[351080757,1738326670959,-500.0,0.00017123,2]
[351080758,1738326670969,-500.0,0.00017123,2]
[351080759,1738326670978,-637.51,0.00017123,2]
[351080760,1738326670988,-349.34069022,0.00017123,2]
[351080761,1738326670997,-508.46,0.00017123,2]
[351080762,1738326671008,-500.0,0.00017123,2]
[351080763,1738326671018,-531.47,0.00017123,2]
[351080764,1738326671027,-500.0,0.00017123,2]
[351080765,1738326671036,-1283.01,0.00017123,2]
[351080766,1738326671046,-500.0,0.00017123,2]
[351080767,1738326671055,-697.34,0.00017123,2]
[351080768,1738326671065,-1136.87,0.00017123,2]
[351080769,1738326671074,-1343.73,0.00017123,2]
[351080770,1738326671083,-753.65,0.00017123,2]
[351080771,1738326671093,-500.0,0.00017123,2]
[351080772,1738326671102,-500.0,0.00017123,2]
[351080773,1738326671111,-500.0,0.00017123,2]
[351080774,1738326671121,-500.0,0.00017123,2]
[351080775,1738326671130,-599.34,0.00017123,2]
[351080776,1738326671140,-807.7,0.00017123,2]
[351080777,1738326671149,-500.0,0.00017123,2]
[351080778,1738326671159,-750.91,0.00017123,2]
[351080779,1738326671168,-1476.1,0.00017123,2]
[351080780,1738326671177,-500.0,0.00017123,2]
[351080781,1738326671186,-500.0,0.00017123,2]
[351080782,1738326671195,-797.58,0.00017123,2]
[351080783,1738326671205,-1071.73,0.00017123,2]
[351080784,1738326671214,-742.91,0.00017123,2]
[351080785,1738326671223,-531.07,0.00017123,2]
[351080786,1738326671234,-525.8,0.00017123,2]
[351080787,1738326671245,-500.0,0.00017123,2]
[351080788,1738326671257,-500.0,0.00017123,2]
[351080789,1738326671266,-500.0,0.00017123,2]
[351080790,1738326671276,-500.0,0.00017123,2]
[351080791,1738326671286,-726.21,0.00017123,2]
[351080792,1738326671296,-848.51,0.00017123,2]
[351080793,1738326671305,-500.0,0.00017123,2]
[351080794,1738326671315,-500.0,0.00017123,2]
[351080795,1738326671325,-611.63,0.00017123,2]
[351080796,1738326671336,-500.0,0.00017123,2]
[351080797,1738326671346,-500.0,0.00017123,2]
[351080798,1738326671356,-527.41,0.00017123,2]
[351080799,1738326671366,-500.0,0.00017123,2]
[351080800,1738326671380,-773.23,0.00017123,2]
[351080801,1738326671389,-500.0,0.00017123,2]
[351080802,1738326671399,-534.44,0.00017123,2]
[351080803,1738326671408,-825.72,0.00017123,2]
[351080804,1738326671418,-616.11,0.00017123,2]
[351080805,1738326671427,-500.0,0.00017123,2]
[351080806,1738326671436,-500.0,0.00017123,2]
[351080807,1738326671445,-774.25,0.00017123,2]
[351080808,1738326671456,-653.54,0.00017123,2]
[351080809,1738326671466,-992.13,0.00017123,2]
[351080810,1738326671475,-205.49756415,0.00017123,2]
[351080811,1738326671484,-500.0,0.00017123,2]
[351080812,1738326671494,-893.92,0.00017123,2]
[351080813,1738326671505,-500.0,0.00017123,2]
[351080814,1738326671515,-500.0,0.00017123,2]
[351080815,1738326671524,-500.0,0.00017123,2]
[351080816,1738326671534,-581.26,0.00017123,2]
[351080817,1738326671543,-500.0,0.00017123,2]
[351080818,1738326671553,-500.0,0.00017123,2]
[351080819,1738326671562,-1372.62,0.00017123,2]
[351080820,1738326671571,-717.67,0.00017123,2]
[351080821,1738326671581,-778.8,0.00017123,2]
[351080822,1738326671590,-944.3,0.00017123,2]
[351080823,1738326671600,-586.81,0.00017123,2]
[351080824,1738326671609,-687.8,0.00017123,2]
[351080825,1738326671619,-304.54,0.00017123,2]
[351080826,1738326671628,-500.0,0.00017123,2]
[351080827,1738326671637,-738.82,0.00017123,2]
[351080828,1738326671647,-708.5,0.00017123,2]
[351080829,1738326671656,-854.04,0.00017123,2]
[351080830,1738326671666,-1836.98,0.00017123,2]
[351080831,1738326671676,-843.1,0.00017123,2]
[351080832,1738326671686,-1314.37,0.00017123,2]
[351080833,1738326671695,-500.0,0.00017123,2]
[351080834,1738326671705,-908.51,0.00017123,2]
[351080835,1738326671715,-500.0,0.00017123,2]
[351080836,1738326671725,-862.58,0.00017123,2]
[351080837,1738326671735,-1105.52,0.00017123,2]
[351080838,1738326671745,-773.46,0.00017123,2]
[351080839,1738326671756,-693.93,0.00017123,2]
[351080840,1738326671766,-594.11,0.00017123,2]
[351080841,1738326671775,-4624.11,0.00017123,2]
[351080842,1738326671785,-17.30718718,0.00017123,2]
[351080843,1738326671824,-500.0,0.00016575,2]
[351080844,1738326671834,-1695.43281282,0.00017123,2]
[351080845,1738326671844,-3138.2,0.00017123,2]
[351080846,1738326671853,-500.0,0.00017123,2]
[351080847,1738326671863,-1334.53,0.00017123,2]
[351080848,1738326671872,-544.98,0.00017123,2]
[351080849,1738326671881,-1396.15,0.00017123,2]
[351080850,1738326671891,-1336.46,0.00017123,2]
[351080851,1738326671900,-500.0,0.00017123,2]
[351080852,1738326671910,-690.6,0.00017123,2]
[351080853,1738326671920,-500.0,0.00017123,2]
[351080854,1738326671930,-733.19,0.00017123,2]
[351080855,1738326671939,-6860.94,0.00017123,2]
[351080856,1738326671949,-500.0,0.00017123,2]
[351080857,1738326671958,-609.97,0.00017123,2]
[351080858,1738326671968,-1196.9,0.00017123,2]
[351080859,1738326671978,-500.0,0.00017123,2]
[351080860,1738326671987,-849.45,0.00017123,2]
[351080861,1738326671998,-500.0,0.00017123,2]
[351080862,1738326672011,-2457.42,0.00017123,2]
[351080863,1738326672021,-500.0,0.00017123,2]
[351080864,1738326672031,-982.87,0.00017123,2]
[351080865,1738326672041,-1442.05,0.00017123,2]
[351080866,1738326672051,-943.84,0.00017123,2]
[351080867,1738326672060,-2083.65,0.00017123,2]
[351080868,1738326672070,-500.0,0.00017123,2]
[351080869,1738326672080,-500.0,0.00017123,2]
[351080870,1738326672089,-4027.64,0.00017123,2]
[351080871,1738326672099,-1015.62,0.00017123,2]
[351080872,1738326672108,-867.63,0.00017123,2]
[351080873,1738326672118,-1382.17,0.00017123,2]
[351080874,1738326672127,-876.78,0.00017123,2]
[351080875,1738326672137,-955.62,0.00017123,2]
[351080876,1738326672146,-943.84,0.00017123,2]
[351080877,1738326672155,-879.0,0.00017123,2]
[351080878,1738326672164,-1445.88,0.00017123,2]
[351080879,1738326672174,-554.03,0.00017123,2]
[351080880,1738326672183,-2222.76,0.00017123,2]
[351080881,1738326672192,-1045.85,0.00017123,2]
[351080882,1738326672202,-5924.82,0.00017123,2]
[351080883,1738326672212,-1937.38,0.00017123,2]
[351080884,1738326672222,-571.97,0.00017123,2]
[351080885,1738326672231,-1083.4,0.00017123,2]
[351080886,1738326672240,-595.17,0.00017123,2]
[351080887,1738326672249,-3371.15,0.00017123,2]
[351080888,1738326672265,-500.0,0.00017123,2]
[351080889,1738326672275,-2934.71,0.00017123,2]
[351080890,1738326672284,-1103.7,0.00017123,2]
[351080891,1738326672293,-500.0,0.00017123,2]
[351080892,1738326672302,-1084.81,0.00017123,2]
[351080893,1738326672311,-1010.59,0.00017123,2]
[351080894,1738326672320,-2002.74,0.00017123,2]
[351080895,1738326672329,-500.0,0.00017123,2]
[351080896,1738326672339,-2663.05,0.00017123,2]
[351080897,1738326672349,-500.0,0.00017123,2]
[351080898,1738326672358,-5797.26,0.00017123,2]
[351080899,1738326672369,-594.92,0.00017123,2]
[351080900,1738326672382,-526.98,0.00017123,2]
[351080901,1738326672391,-892.3,0.00017123,2]
[351080902,1738326672401,-500.0,0.00017123,2]
[351080903,1738326672411,-1125.38,0.00017123,2]
[351080904,1738326672420,-1337.93,0.00017123,2]
[351080905,1738326672430,-500.0,0.00017123,2]
[351080906,1738326672440,-2132.23,0.00017123,2]
[351080907,1738326672451,-1191.17,0.00017123,2]
[351080908,1738326672461,-1970.85,0.00017123,2]
[351080909,1738326672470,-1053.46,0.00017123,2]
[351080910,1738326672480,-823.99,0.00017123,2]
[351080911,1738326672489,-2217.35,0.00017123,2]
[351080912,1738326672498,-2411.93,0.00017123,2]
[351080913,1738326672515,-277.93792765,0.00017123,2]
[351080914,1738326672527,-605.23,0.00017123,2]
[351080915,1738326672536,-1042.88,0.00017123,2]
[351080916,1738326672546,-500.0,0.00017123,2]
[351080917,1738326672555,-1176.72,0.00017123,2]
[351080918,1738326672565,-1715.86,0.00017123,2]
[351080919,1738326672575,-2038.46,0.00017123,2]
[351080920,1738326672585,-827.6,0.00017123,2]
[351080921,1738326672595,-1855.9,0.00017123,2]
[351080922,1738326672605,-783.11,0.00017123,2]
[351080923,1738326672615,-500.0,0.00017123,2]
[351080924,1738326672624,-969.33,0.00017123,2]
[351080925,1738326672634,-4237.1,0.00017123,2]
[351080926,1738326672644,-1585.38781913,0.00017123,2]
[351080927,1738326673054,-500.0,0.00016438,2]
[351080928,1738326673063,-1658.57,0.00016438,2]
[351080929,1738326673072,-501.17993349,0.00016575,2]
[351080930,1738326673081,-1231.73394051,0.00016575,2]
[351080931,1738326673196,-426.83605949,0.00016575,2]
[351080932,1738326673206,-206.85823922,0.00016712,2]
[351080933,1738326673215,-650.98370129,0.00016712,2]
[351080934,1738326673232,-1007.58629871,0.00016712,2]
[351080935,1738326673241,-500.0,0.00016849,2]
[351080936,1738326673251,-589.61370129,0.00016849,2]
[351080937,1738326673265,-1068.95629871,0.00016849,2]
[351080938,1738326673275,-500.0,0.00016986,2]
[351080939,1738326673283,-106.5462613,0.00017123,2]
[351080940,1738326673295,-324.17591957,0.00017123,2]
[351080941,1738326673304,-1229.22007979,0.00017123,2]
[351080942,1738326673315,-1249.99992021,0.00017123,2]
[351080943,1738326673324,-969.44,0.00017123,2]
[351080944,1738326673333,-1584.44,0.00017123,2]
[351080945,1738326673343,-452.76571265,0.00017123,2]
[351080946,1738326673353,-1149.85,0.00017123,2]
[351080947,1738326673362,-696.96,0.00017123,2]
[351080948,1738326673373,-500.0,0.00017123,2]
[351080949,1738326673384,-500.0,0.00017123,2]
[351080950,1738326673395,-661.24,0.00017123,2]
[351080951,1738326673404,-1340.07,0.00017123,2]
[351080952,1738326673414,-2614.22,0.00017123,2]
[351080953,1738326673423,-129.67335489,0.00017123,2]
[351080954,1738326750108,-300.0,0.00011799,2]
[351080955,1738326750135,-4505.0,0.000118,2]
[351080957,1738327172214,-406.89,0.00010137,2]
[351080959,1738327548449,1000.0,9.567e-05,4]
[351080960,1738327560658,1000.0,9.567e-05,4]
[351080961,1738327574677,1000.0,9.6e-05,4]